fUSD/lending_fUSD_20251123
["ID","MTS","AMOUNT","RATE_DAILY","PERIOD"]
[394749349,1763927451307,-153.151611,0.00038356,31]
[394749350,1763927451316,-500.0,0.00038356,8]
[394749351,1763927451326,-500.0,0.00038356,8]
[394749352,1763927451336,-1000.0,0.00038356,8]
[394749353,1763927451345,-500.0,0.00038356,8]
[394749354,1763927451354,-833.66,0.00038356,8]
[394749355,1763927451363,-500.0,0.00038356,8]
[394749356,1763927451372,-500.0,0.00038356,8]
[394749357,1763927451382,-151.0,0.00038356,30]
[394749358,1763927451392,-500.0,0.00038356,8]
[394749359,1763927451402,-151.0,0.00038356,30]
[394749360,1763927451411,-500.0,0.00038356,8]
[394749361,1763927451421,-500.0,0.00038356,8]
[394749362,1763927451431,-500.0,0.00038356,8]
[394749363,1763927451440,-151.0,0.00038356,30]
[394749364,1763927451450,-500.0,0.00038356,8]
[394749365,1763927451459,-500.0,0.00038356,8]
[394749366,1763927451469,-500.0,0.00038356,8]
[394749367,1763927451479,-500.0,0.00038356,8]
[394749368,1763927451490,-500.0,0.00038356,8]
[394749369,1763927451500,-372.901035,0.00038356,31]
[394749370,1763927451509,-905.59,0.00038356,8]
[394749371,1763927451519,-372.901035,0.00038356,31]
[394749372,1763927451528,-500.0,0.00038356,8]
[394749373,1763927451537,-500.0,0.00038356,8]
[394749374,1763927451546,-372.901035,0.00038356,31]
[394749375,1763927451556,-500.0,0.00038356,8]
[394749376,1763927451565,-372.901035,0.00038356,31]
[394749377,1763927451575,-500.0,0.00038356,8]
[394749378,1763927451584,-500.0,0.00038356,8]
[394749379,1763927451594,-946.01,0.00038356,8]
[394749380,1763927451603,-500.0,0.00038356,8]
[394749381,1763927451613,-500.0,0.00038356,8]
[394749382,1763927451623,-372.901035,0.00038356,31]
[394749383,1763927451633,-372.901035,0.00038356,31]
[394749384,1763927451642,-519.16,0.00038356,8]
[394749385,1763927451652,-500.0,0.00038356,8]
[394749386,1763927451662,-560.51,0.00038356,8]
[394749387,1763927451671,-372.901035,0.00038356,31]
[394749388,1763927451681,-372.901035,0.00038356,31]
[394749389,1763927451690,-500.0,0.00038356,8]
[394749390,1763927451699,-500.0,0.00038356,8]
[394749391,1763927451708,-500.0,0.00038356,8]
[394749392,1763927451717,-500.0,0.00038356,8]
[394749393,1763927451726,-286.9,0.00038356,8]
[394749394,1763927451735,-500.0,0.00038356,8]
[394749395,1763927451744,-500.0,0.00038356,8]
[394749396,1763927451753,-500.0,0.00038356,8]
[394749397,1763927451763,-500.0,0.00038356,8]
[394749398,1763927451772,-500.0,0.00038356,8]
[394749399,1763927451781,-500.0,0.00038356,8]
[394749400,1763927451790,-663.95,0.00038356,8]
[394749401,1763927451799,-500.0,0.00038356,8]
[394749402,1763927451809,-500.0,0.00038356,8]
[394749403,1763927451818,-500.0,0.00038356,8]
[394749404,1763927451828,-500.0,0.00038356,8]
[394749405,1763927451837,-511.72190004,0.00038356,8]
[394749406,1763927451847,-500.0,0.00038356,8]
[394749407,1763927451859,-500.0,0.00038356,8]
[394749408,1763927451868,-500.0,0.00038356,8]
[394749409,1763927451877,-500.0,0.00038356,8]
[394749410,1763927451886,-500.0,0.00038356,8]
[394749411,1763927451897,-500.0,0.00038356,8]
[394749412,1763927451907,-500.0,0.00038356,8]
[394749413,1763927451916,-500.0,0.00038356,8]
[394749414,1763927451927,-500.0,0.00038356,8]
[394749415,1763927451935,-500.0,0.00038356,8]
[394749416,1763927451945,-873.33,0.00038356,8]
[394749417,1763927451954,-532.47,0.00038356,8]
[394749418,1763927451963,-500.0,0.00038356,8]
[394749419,1763927451972,-500.0,0.00038356,8]
[394749420,1763927451982,-1875.73,0.00038356,8]
[394749421,1763927451991,-500.0,0.00038356,8]
[394749422,1763927452000,-467.99345174,0.00038356,8]
[394749423,1763927452011,-500.0,0.00038356,8]
[394749424,1763927452022,-500.0,0.00038356,8]
[394749425,1763927452032,-500.0,0.00038356,8]
[394749426,1763927452042,-500.0,0.00038356,8]
[394749427,1763927452055,-1300.54,0.00038356,8]
[394749428,1763927452069,-500.0,0.00038356,8]
[394749429,1763927452078,-500.0,0.00038356,8]
[394749430,1763927452087,-500.0,0.00038356,8]
[394749431,1763927452097,-500.0,0.00038356,8]
[394749432,1763927452107,-500.0,0.00038356,8]
[394749433,1763927452116,-500.0,0.00038356,8]
[394749434,1763927452126,-500.0,0.00038356,8]
[394749435,1763927452135,-500.0,0.00038356,8]
[394749436,1763927452144,-500.0,0.00038356,8]
[394749437,1763927452155,-500.0,0.00038356,8]
[394749438,1763927452165,-500.0,0.00038356,8]
[394749439,1763927452176,-500.0,0.00038356,8]
[394749440,1763927452188,-500.0,0.00038356,8]
[394749441,1763927452198,-500.0,0.00038356,8]
[394749442,1763927452208,-500.0,0.00038356,8]
[394749443,1763927452217,-569.42,0.00038356,8]
[394749444,1763927452227,-590.63,0.00038356,8]
[394749445,1763927452236,-500.0,0.00038356,8]
[394749446,1763927452246,-1235.78,0.00038356,8]
[394749447,1763927452256,-500.0,0.00038356,8]
[394749448,1763927452266,-500.0,0.00038356,8]
[394749449,1763927452276,-500.0,0.00038356,8]
[394749450,1763927452285,-809.87,0.00038356,8]
[394749451,1763927452295,-500.0,0.00038356,8]
[394749452,1763927452305,-635.30525626,0.00038356,8]
[394749453,1763927452315,-500.0,0.00038356,8]
[394749454,1763927452327,-500.0,0.00038356,8]
[394749455,1763927452336,-500.0,0.00038356,8]
[394749456,1763927452346,-535.27666157,0.00038356,8]
[394749457,1763927452356,-1373.7,0.00038356,8]
[394749458,1763927452365,-504.9,0.00038356,8]
[394749459,1763927452374,-500.0,0.00038356,8]
[394749460,1763927452385,-842.0,0.00038356,8]
[394749461,1763927452395,-500.0,0.00038356,8]
[394749462,1763927452405,-500.0,0.00038356,8]
[394749463,1763927452415,-500.0,0.00038356,8]
[394749464,1763927452426,-500.0,0.00038356,8]
[394749465,1763927452435,-500.0,0.00038356,8]
[394749466,1763927452445,-500.0,0.00038356,8]
[394749467,1763927452455,-500.0,0.00038356,8]
[394749468,1763927452464,-500.0,0.00038356,8]
[394749469,1763927452474,-500.0,0.00038356,8]
[394749470,1763927452483,-583.84,0.00038356,8]
[394749471,1763927452493,-500.0,0.00038356,8]
[394749472,1763927452502,-500.0,0.00038356,8]
[394749473,1763927452512,-500.0,0.00038356,8]
[394749474,1763927452521,-541.44,0.00038356,8]
[394749475,1763927452531,-559.82,0.00038356,8]
[394749476,1763927452540,-500.0,0.00038356,8]
[394749477,1763927452550,-500.0,0.00038356,8]
[394749478,1763927452560,-750.62,0.00038356,8]
[394749479,1763927452570,-500.0,0.00038356,8]
[394749480,1763927452579,-586.43,0.00038356,8]
[394749481,1763927452588,-500.0,0.00038356,8]
[394749482,1763927452597,-500.0,0.00038356,8]
[394749483,1763927452607,-594.55,0.00038356,8]
[394749484,1763927452617,-677.57,0.00038356,8]
[394749485,1763927452628,-543.16,0.00038356,8]
[394749486,1763927452638,-500.0,0.00038356,8]
[394749487,1763927452647,-500.0,0.00038356,8]
[394749488,1763927452656,-500.0,0.00038356,8]
[394749489,1763927452666,-500.0,0.00038356,8]
[394749490,1763927452675,-500.0,0.00038356,8]
[394749491,1763927452684,-500.0,0.00038356,8]
[394749492,1763927452694,-500.0,0.00038356,8]
[394749493,1763927452703,-5115.11,0.00038356,8]
[394749494,1763927452712,-214.74749,0.00038356,31]
[394749495,1763927452722,-500.0,0.00038356,8]
[394749496,1763927452731,-502.67202862,0.00038356,8]
[394749497,1763927452741,-513.73,0.00038356,8]
[394749498,1763927452750,-500.0,0.00038356,8]
[394749499,1763927452759,-500.0,0.00038356,8]
[394749500,1763927452768,-500.0,0.00038356,8]
[394749501,1763927452777,-500.0,0.00038356,8]
[394749502,1763927452787,-500.0,0.00038356,8]
[394749503,1763927452796,-924.9,0.00038356,8]
[394749504,1763927452805,-547.26,0.00038356,8]
[394749505,1763927452814,-500.0,0.00038356,8]
[394749506,1763927452823,-1037.99,0.00038356,8]
[394749507,1763927452832,-500.0,0.00038356,8]
[394749508,1763927452842,-154.25143589,0.00038356,8]
[394749509,1763927452854,-500.0,0.00038356,8]
[394749510,1763927452863,-500.0,0.00038356,8]
[394749511,1763927452872,-649.35,0.00038356,8]
[394749512,1763927452883,-500.0,0.00038356,8]
[394749513,1763927452892,-500.0,0.00038356,8]
[394749514,1763927452902,-500.0,0.00038356,8]
[394749515,1763927452913,-500.0,0.00038356,8]
[394749516,1763927452922,-500.0,0.00038356,8]
[394749517,1763927452933,-98.86851436,0.00038356,8]
[394749518,1763927453340,-353.43393972,0.00038356,8]
[394749519,1763927453404,-191.37,0.000349,14]
[394749520,1763927453414,-47.69754592,0.00038356,8]
[394749521,1763927453423,-500.0,0.00038356,8]
[394749522,1763927453505,-175.72463223,0.00038356,8]
[394749523,1763927453515,-239.60603873,0.00038356,8]
[394749524,1763927453536,-260.39396127,0.00038356,8]
[394749525,1763927453545,-48.41603873,0.00038356,8]
[394749526,1763927454169,-191.37,0.000361,14]
[394749527,1763927454179,-252.0,0.00037192,2]
[394749528,1763927454189,-191.37,0.000373,14]
[394749529,1763927454199,-451.58396127,0.00038356,8]
[394749530,1763927454209,-544.3,0.00038356,8]
[394749531,1763927454218,-500.0,0.00038356,8]
[394749532,1763927454228,-590.94297344,0.00038356,8]
[394749533,1763927454237,-659.88,0.00038356,8]
[394749534,1763927454247,-607.85,0.00038356,8]
[394749535,1763927454257,-500.0,0.00038356,8]
[394749536,1763927454267,-500.0,0.00038356,8]
[394749537,1763927454276,-500.0,0.00038356,8]
[394749538,1763927454285,-500.0,0.00038356,8]
[394749539,1763927454295,-500.0,0.00038356,8]
[394749540,1763927454304,-790.64,0.00038356,8]
[394749541,1763927454314,-500.0,0.00038356,8]
[394749542,1763927454323,-500.0,0.00038356,8]
[394749543,1763927454333,-576.49958739,0.00038356,8]
[394749544,1763927454342,-500.0,0.00038356,8]
[394749545,1763927454351,-500.0,0.00038356,8]
[394749546,1763927454361,-500.0,0.00038356,8]
[394749547,1763927454370,-500.0,0.00038356,8]
[394749548,1763927454379,-500.0,0.00038356,8]
[394749549,1763927454388,-500.0,0.00038356,8]
[394749550,1763927454397,-627.78,0.00038356,2]
[394749551,1763927454407,-500.0,0.00038356,8]
[394749552,1763927454416,-814.66,0.00038356,8]
[394749553,1763927454425,-537.95,0.00038356,8]
[394749554,1763927454434,-500.0,0.00038356,8]
[394749555,1763927454444,-500.0,0.00038356,8]
[394749556,1763927454453,-500.0,0.00038356,8]
[394749557,1763927454462,-500.0,0.00038356,8]
[394749558,1763927454471,-505.59803039,0.00038356,8]
[394749559,1763927454480,-1020.99,0.00038356,8]
[394749560,1763927454489,-500.0,0.00038356,8]
[394749561,1763927454502,-500.0,0.00038356,8]
[394749562,1763927454512,-500.0,0.00038356,8]
[394749563,1763927454521,-500.0,0.00038356,8]
[394749564,1763927454531,-500.0,0.00038356,8]
[394749565,1763927454540,-500.0,0.00038356,8]
[394749566,1763927454550,-520.20150336,0.00038356,8]
[394749567,1763927454559,-526.84,0.00038356,8]
[394749568,1763927454569,-500.0,0.00038356,8]
[394749569,1763927454578,-500.0,0.00038356,8]
[394749570,1763927454588,-500.0,0.00038356,8]
[394749571,1763927454597,-1107.14,0.00038356,8]
[394749572,1763927454607,-500.0,0.00038356,8]
[394749573,1763927454617,-500.0,0.00038356,8]
[394749574,1763927454626,-500.0,0.00038356,8]
[394749575,1763927454635,-500.0,0.00038356,8]
[394749576,1763927454645,-552.54,0.00038356,8]
[394749577,1763927454654,-500.0,0.00038356,8]
[394749578,1763927454663,-597.79,0.00038356,8]
[394749579,1763927454672,-530.38185094,0.00038356,8]
[394749580,1763927454682,-505.46,0.00038356,8]
[394749581,1763927454691,-500.0,0.00038356,8]
[394749582,1763927454701,-500.0,0.00038356,8]
[394749583,1763927454710,-500.0,0.00038356,8]
[394749584,1763927454719,-669.01,0.00038356,8]
[394749585,1763927454729,-500.0,0.00038356,8]
[394749586,1763927454739,-500.0,0.00038356,8]
[394749587,1763927454748,-513.11,0.00038356,8]
[394749588,1763927454758,-7045.05,0.00038356,8]
[394749589,1763927454767,-713.56,0.00038356,8]
[394749590,1763927454777,-155.964557,0.00038356,10]
[394749591,1763927454785,-500.0,0.00038356,8]
[394749592,1763927454794,-500.0,0.00038356,8]
[394749593,1763927454804,-500.0,0.00038356,8]
[394749594,1763927454813,-500.0,0.00038356,8]
[394749595,1763927454823,-500.0,0.00038356,8]
[394749596,1763927454834,-500.0,0.00038356,8]
[394749597,1763927454847,-500.0,0.00038356,8]
[394749598,1763927454857,-655.3,0.00038356,8]
[394749599,1763927454866,-500.0,0.00038356,8]
[394749600,1763927454875,-151.0,0.00038356,120]
[394749601,1763927454888,-151.0,0.00038356,120]
[394749602,1763927454898,-151.0,0.00038356,120]
[394749603,1763927454907,-151.0,0.00038356,120]
[394749604,1763927454918,-319.00126276,0.00038356,2]
[394749605,1763927454927,-500.0,0.00038373,5]
[394749606,1763927454936,-206.32968314,0.00038373,5]
[394749607,1763927454945,-217.83804072,0.00038458,2]
[394749608,1763927454954,-378.54858533,0.00038485,2]
[394749609,1763927454963,-200.0,0.00038487,20]
[394749610,1763927454972,-653.0,0.00038494,120]
[394749611,1763927454981,-3454.56532,0.0003851,2]
[394749612,1763927454990,-834.5,0.00038548,2]
[394749613,1763927454999,-150.0,0.00038548,2]
[394749614,1763927455009,-2737.0,0.0003855,5]
[394749615,1763927455019,-654.0,0.00038552,7]
[394749616,1763927455028,-500.0,0.00038629,8]
[394749617,1763927455037,-500.0,0.00038629,8]
[394749618,1763927455046,-500.0,0.00038629,7]
[394749619,1763927455055,-500.0,0.00038629,7]
[394749620,1763927455064,-500.0,0.00038629,8]
[394749621,1763927455073,-500.0,0.00038629,8]
[394749622,1763927455082,-500.0,0.00038629,2]
[394749623,1763927455092,-500.0,0.00038629,2]
[394749624,1763927455102,-500.0,0.0003863,8]
[394749625,1763927455112,-500.0,0.0003863,8]
[394749626,1763927455122,-500.0,0.0003863,8]
[394749627,1763927455131,-500.0,0.0003863,8]
[394749628,1763927455141,-2200.0,0.0003863,7]
[394749629,1763927455150,-500.0,0.0003863,8]
[394749630,1763927455159,-500.0,0.0003863,8]
[394749631,1763927455168,-500.0,0.0003863,8]
[394749632,1763927455178,-500.0,0.0003863,8]
[394749633,1763927455187,-500.0,0.0003863,8]
[394749634,1763927455196,-500.0,0.0003863,8]
[394749635,1763927455206,-667.74,0.0003863,8]
[394749636,1763927455216,-731.32,0.0003863,8]
[394749637,1763927455225,-500.0,0.0003863,8]
[394749638,1763927455235,-500.0,0.0003863,8]
[394749639,1763927455244,-182.43521127,0.0003863,8]
[394749640,1763927455253,-318.41526136,0.0003863,8]
[394749641,1763927455262,-500.0,0.0003863,8]
[394749642,1763927455275,-500.0,0.0003863,8]
[394749643,1763927455284,-500.0,0.0003863,8]
[394749644,1763927455294,-500.0,0.0003863,8]
[394749645,1763927455303,-500.0,0.0003863,8]
[394749646,1763927455312,-770.19,0.0003863,8]
[394749647,1763927455321,-500.0,0.0003863,8]
[394749648,1763927455331,-504.33427885,0.0003863,8]
[394749649,1763927455341,-500.0,0.0003863,8]
[394749650,1763927455350,-500.0,0.0003863,8]
[394749651,1763927455359,-500.0,0.0003863,8]
[394749652,1763927455368,-500.0,0.0003863,8]
[394749653,1763927455378,-504.55452204,0.0003863,8]
[394749654,1763927455387,-500.0,0.0003863,8]
[394749655,1763927455396,-500.0,0.0003863,8]
[394749656,1763927455406,-500.0,0.0003863,8]
[394749657,1763927455415,-811.08,0.0003863,8]
[394749658,1763927455424,-500.0,0.0003863,8]
[394749659,1763927455433,-500.0,0.0003863,8]
[394749660,1763927455443,-500.0,0.0003863,8]
[394749661,1763927455453,-151.585645,0.0003863,120]
[394749662,1763927455462,-151.0,0.0003863,120]
[394749663,1763927455471,-525.94314541,0.0003863,8]
[394749664,1763927455481,-500.0,0.0003863,8]
[394749665,1763927455491,-500.0,0.0003863,8]
[394749666,1763927455499,-500.0,0.0003863,8]
[394749667,1763927455508,-500.0,0.0003863,8]
[394749668,1763927455518,-500.0,0.0003863,8]
[394749669,1763927455527,-500.0,0.0003863,8]
[394749670,1763927455536,-504.16,0.0003863,8]
[394749671,1763927455546,-500.0,0.0003863,8]
[394749672,1763927455555,-500.0,0.0003863,8]
[394749673,1763927455564,-503.04,0.0003863,8]
[394749674,1763927455573,-500.0,0.0003863,8]
[394749675,1763927455582,-500.0,0.0003863,8]
[394749676,1763927455591,-500.0,0.0003863,8]
[394749677,1763927455601,-865.77,0.0003863,8]
[394749678,1763927455611,-500.0,0.0003863,8]
[394749679,1763927455620,-500.0,0.0003863,8]
[394749680,1763927455629,-500.0,0.0003863,8]
[394749681,1763927455638,-500.0,0.0003863,8]
[394749682,1763927455647,-500.0,0.0003863,8]
[394749683,1763927455659,-524.98,0.0003863,8]
[394749684,1763927455668,-500.0,0.0003863,8]
[394749685,1763927455677,-500.0,0.0003863,8]
[394749686,1763927455686,-599.6,0.0003863,8]
[394749687,1763927455695,-500.0,0.0003863,8]
[394749688,1763927455704,-500.0,0.0003863,8]
[394749689,1763927455712,-245.17629852,0.0003863,8]
[394749690,1763927455721,-157.421152,0.0003863,120]
[394749691,1763927455730,-500.0,0.0003863,8]
[394749692,1763927455739,-500.0,0.0003863,8]
[394749693,1763927455748,-500.0,0.0003863,8]
[394749694,1763927455757,-500.0,0.0003863,8]
[394749695,1763927455766,-500.0,0.0003863,8]
[394749696,1763927455775,-500.0,0.0003863,8]
[394749697,1763927455784,-500.0,0.0003863,8]
[394749698,1763927455793,-527.96,0.0003863,8]
[394749699,1763927455802,-151.0,0.0003863,30]
[394749700,1763927455811,-274.96712084,0.0003863,8]
[394749701,1763927455821,-500.0,0.0003863,8]
[394749702,1763927455830,-629.08,0.0003863,8]
[394749703,1763927455840,-500.0,0.0003863,8]
[394749704,1763927455853,-500.0,0.0003863,8]
[394749705,1763927455862,-679.42,0.0003863,8]
[394749706,1763927455872,-151.0,0.0003863,120]
[394749707,1763927455882,-151.0,0.0003863,120]
[394749708,1763927455892,-500.0,0.0003863,8]
[394749709,1763927455902,-651.21,0.0003863,8]
[394749710,1763927455912,-884.32,0.0003863,8]
[394749711,1763927455922,-500.0,0.0003863,8]
[394749712,1763927455931,-418.51099093,0.0003863,8]
[394749713,1763927455941,-500.0,0.0003863,8]
[394749714,1763927455950,-500.0,0.0003863,8]
[394749715,1763927455959,-543.27147222,0.0003863,8]
[394749716,1763927455970,-500.0,0.0003863,8]
[394749717,1763927455980,-500.0,0.0003863,8]
[394749718,1763927455990,-500.0,0.0003863,8]
[394749719,1763927455999,-500.0,0.0003863,8]
[394749720,1763927456009,-503.19,0.0003863,8]
[394749721,1763927456018,-500.0,0.0003863,8]
[394749722,1763927456028,-500.0,0.0003863,2]
[394749723,1763927456037,-500.0,0.0003863,8]
[394749724,1763927456046,-500.0,0.0003863,8]
[394749725,1763927456060,-500.0,0.0003863,8]
[394749726,1763927456070,-500.0,0.0003863,8]
[394749727,1763927456079,-738.16,0.0003863,8]
[394749728,1763927456089,-500.0,0.0003863,8]
[394749729,1763927456098,-500.0,0.0003863,8]
[394749730,1763927456108,-531.5260874,0.0003863,8]
[394749731,1763927456117,-500.0,0.0003863,8]
[394749732,1763927456126,-290.95014256,0.0003863,8]
[394749733,1763927456136,-615.3,0.0003863,8]
[394749734,1763927456145,-500.0,0.0003863,8]
[394749735,1763927456155,-500.0,0.0003863,8]
[394749736,1763927456164,-500.0,0.0003863,8]
[394749737,1763927456173,-500.0,0.0003863,8]
[394749738,1763927456183,-500.0,0.0003863,8]
[394749739,1763927456192,-500.0,0.0003863,8]
[394749740,1763927456202,-500.0,0.0003863,8]
[394749741,1763927456211,-500.0,0.0003863,8]
[394749742,1763927456220,-507.95,0.0003863,8]
[394749743,1763927456229,-500.0,0.0003863,8]
[394749744,1763927456239,-500.0,0.0003863,8]
[394749745,1763927456249,-500.0,0.0003863,8]
[394749746,1763927456258,-500.0,0.0003863,8]
[394749747,1763927456267,-500.0,0.0003863,8]
[394749748,1763927456278,-500.0,0.0003863,8]
[394749749,1763927456287,-500.0,0.0003863,8]
[394749750,1763927456297,-500.0,0.0003863,8]
[394749751,1763927456306,-500.0,0.0003863,8]
[394749752,1763927456316,-500.0,0.0003863,8]
[394749753,1763927456327,-500.0,0.0003863,8]
[394749754,1763927456337,-500.0,0.0003863,8]
[394749755,1763927456346,-214.56524991,0.0003863,8]
[394749756,1763927456356,-508.4681094,0.0003863,8]
[394749757,1763927456366,-500.0,0.0003863,8]
[394749758,1763927456377,-548.0,0.0003863,8]
[394749759,1763927456387,-562.29,0.0003863,8]
[394749760,1763927456397,-500.0,0.0003863,8]
[394749761,1763927456407,-500.0,0.0003863,8]
[394749762,1763927456418,-545.39,0.0003863,8]
[394749763,1763927456427,-151.0,0.0003863,120]
[394749764,1763927456439,-500.0,0.0003863,8]
[394749765,1763927456450,-151.0,0.0003863,120]
[394749766,1763927456460,-711.27,0.0003863,8]
[394749767,1763927456469,-500.0,0.0003863,8]
[394749768,1763927456479,-500.0,0.0003863,8]
[394749769,1763927456488,-709.07,0.0003863,8]
[394749770,1763927456498,-500.0,0.0003863,8]
[394749771,1763927456508,-500.0,0.0003863,8]
[394749772,1763927456518,-500.0,0.0003863,8]
[394749773,1763927456527,-842.65,0.0003863,8]
[394749774,1763927456537,-151.0,0.0003863,120]
[394749775,1763927456546,-151.0,0.0003863,120]
[394749776,1763927456555,-500.0,0.0003863,8]
[394749777,1763927456565,-500.0,0.0003863,8]
[394749778,1763927456574,-500.0,0.0003863,8]
[394749779,1763927456584,-500.0,0.0003863,8]
[394749780,1763927456593,-500.0,0.0003863,8]
[394749781,1763927456603,-500.0,0.0003863,8]
[394749782,1763927456613,-500.0,0.0003863,8]
[394749783,1763927456622,-500.0,0.0003863,8]
[394749784,1763927456632,-500.0,0.0003863,8]
[394749785,1763927456641,-500.0,0.0003863,8]
[394749786,1763927456651,-500.0,0.0003863,8]
[394749787,1763927456660,-500.0,0.0003863,8]
[394749788,1763927456669,-500.0,0.0003863,8]
[394749789,1763927456679,-500.0,0.0003863,8]
[394749790,1763927456688,-500.0,0.0003863,8]
[394749791,1763927456698,-500.0,0.0003863,8]
[394749792,1763927456707,-568.14,0.0003863,8]
[394749793,1763927456716,-517.18835265,0.0003863,8]
[394749794,1763927456726,-500.0,0.0003863,8]
[394749795,1763927456735,-500.0,0.0003863,8]
[394749796,1763927456745,-151.0,0.0003863,120]
[394749797,1763927456754,-151.0,0.0003863,120]
[394749798,1763927456765,-151.0,0.0003863,120]
[394749799,1763927456774,-151.0,0.0003863,120]
[394749800,1763927456783,-151.0,0.0003863,120]
[394749801,1763927456792,-151.0,0.0003863,120]
[394749802,1763927456802,-756.18,0.0003863,8]
[394749803,1763927456811,-500.0,0.0003863,8]
[394749804,1763927456820,-151.0,0.0003863,120]
[394749805,1763927456830,-151.0,0.0003863,120]
[394749806,1763927456840,-632.0,0.0003863,8]
[394749807,1763927456852,-158.16080699,0.0003863,8]
[394749808,1763927456862,-500.0,0.0003863,8]
[394749809,1763927456872,-500.0,0.0003863,8]
[394749810,1763927456882,-500.0,0.0003863,8]
[394749811,1763927456891,-500.0,0.0003863,8]
[394749812,1763927456900,-500.0,0.0003863,8]
[394749813,1763927456910,-903.72,0.0003863,8]
[394749814,1763927456919,-506.52,0.0003863,8]
[394749815,1763927456929,-500.0,0.0003863,8]
[394749816,1763927456938,-500.0,0.0003863,8]
[394749817,1763927456947,-500.0,0.0003863,8]
[394749818,1763927456957,-549.24,0.0003863,8]
[394749819,1763927456966,-500.0,0.0003863,8]
[394749820,1763927456975,-151.0,0.0003863,120]
[394749821,1763927456985,-417.21227023,0.0003863,8]
[394749822,1763927456994,-151.0,0.0003863,120]
[394749823,1763927457004,-500.0,0.0003863,8]
[394749824,1763927457013,-300.0,0.0003863,2]
[394749825,1763927457023,-151.0,0.0003863,120]
[394749826,1763927457033,-500.0,0.0003863,8]
[394749827,1763927457042,-151.0,0.0003863,120]
[394749828,1763927457052,-500.0,0.0003863,8]
[394749829,1763927457061,-595.57,0.0003863,8]
[394749830,1763927457070,-500.0,0.0003863,8]
[394749831,1763927457080,-500.0,0.0003863,8]
[394749832,1763927457089,-151.0,0.0003863,120]
[394749833,1763927457099,-151.0,0.0003863,120]
[394749834,1763927457108,-500.0,0.0003863,8]
[394749835,1763927457118,-151.0,0.0003863,120]
[394749836,1763927457127,-151.0,0.0003863,120]
[394749837,1763927457137,-155.91960181,0.0003863,8]
[394749838,1763927457146,-500.0,0.0003863,8]
[394749839,1763927457155,-500.0,0.0003863,8]
[394749840,1763927457164,-151.0,0.0003863,90]
[394749841,1763927457174,-151.0,0.0003863,90]
[394749842,1763927457184,-500.0,0.0003863,8]
[394749843,1763927457193,-500.0,0.0003863,8]
[394749844,1763927457203,-727.68,0.0003863,8]
[394749845,1763927457213,-500.0,0.0003863,8]
[394749846,1763927457222,-506.884195,0.0003863,8]
[394749847,1763927457232,-659.2,0.0003863,8]
[394749848,1763927457241,-285.430702,0.0003863,8]